bitfinex/quotes_ETHUSD_20260314
["timestamp","ask_amount","ask_price","bid_price","bid_amount"]
[1773466603878,0.001,2088.1,2087.9,1.19737535]
[1773466604691,0.001,2088.1,2087.9,1.29720414]
[1773466605864,0.001,2088.1,2087.9,1.19737535]
[1773466606071,1.12316245,2088.1,2087.9,1.19737535]
[1773466606474,0.001,2088.1,2087.9,1.19737535]
[1773466606869,0.001,2088.1,2087.9,1.29599765]
[1773466607062,0.001,2088.1,2087.9,1.19737535]
[1773466607263,1.11389292,2088.1,2087.9,1.19737535]
[1773466607690,1.11389292,2088.1,2087.7,1.29606542]
[1773466607992,1.11389292,2088.1,2087.8,0.0478973]
[1773466608892,0.001,2088.1,2087.8,0.14573356]
[1773466609081,0.001,2088.1,2087.9,0.09783626]
[1773466609862,0.001,2088.1,2088.0,1.197318]
[1773466610493,1.19695981,2088.7,2088.0,1.197318]
[1773466610494,1.11289292,2088.4,2088.0,1.29476495]
[1773466610868,1.11289292,2088.8,2088.1,0.09706125]
[1773466611896,1.11289292,2088.8,2088.2,1.19720333]
[1773466612097,1.11289292,2088.8,2088.2,1.29351035]
[1773466612299,1.11289292,2088.7,2088.2,1.29351035]
[1773466612593,1.11289292,2088.7,2088.2,1.19720333]
[1773466612888,1.11289292,2088.7,2088.2,1.29314581]
[1773466613094,1.057216,2089.1,2088.3,0.09594248]
[1773466614093,1.057216,2089.1,2088.4,2.3162758]
[1773466615988,1.057216,2089.1,2088.6,2.31616116]
[1773466616694,0.001,2088.9,2088.6,2.31616116]
[1773466616870,1.058216,2088.9,2088.4,1.19704847]
[1773466618298,1.058216,2088.9,2088.3,4.78845321]
[1773466618299,1.057216,2088.8,2088.3,1.197146]
[1773466618727,7.39927597,2089.3,2088.3,1.197146]
[1773466618728,1.057216,2089.8,2089.0,1.11918712]
[1773466618879,1.057216,2089.7,2088.8,1.11918712]
[1773466619371,1.057216,2089.7,2088.4,1.11918712]
[1773466619571,1.057216,2089.5,2088.4,1.11918712]
[1773466620409,1.19651574,2089.4,2088.5,1.19703136]
[1773466620606,1.057216,2089.3,2088.5,2.31621848]
[1773466620772,1.057216,2089.3,2088.5,1.19703136]
[1773466621173,1.057216,2089.3,2088.6,1.11918712]
[1773466621599,1.057216,2089.5,2088.6,1.11918712]
[1773466622505,1.057216,2089.5,2088.8,1.11918712]
[1773466624077,1.057216,2089.7,2088.9,1.11918712]
[1773466624581,1.057216,2089.7,2089.1,1.11918712]
[1773466624784,1.057216,2090.0,2089.1,1.11918712]
[1773466625301,1.057216,2090.0,2089.0,1.19674485]
[1773466625504,1.19614266,2090.1,2088.9,1.19678489]
[1773466625505,1.057216,2089.8,2088.9,1.19678489]
[1773466625707,1.057216,2089.8,2088.7,2.31607941]
[1773466625883,1.057216,2089.6,2088.5,1.19699701]
[1773466626215,1.057216,2089.4,2088.5,1.19699701]
[1773466626584,1.057216,2089.2,2088.4,2.31623718]
[1773466626796,1.057216,2089.2,2088.3,0.04788584]
[1773466627103,1.057216,2089.0,2088.0,1.19837463]
[1773466628981,1.057216,2088.8,2088.0,0.0011]
[1773466629411,1.057216,2088.8,2088.2,0.0011]
[1773466631917,1.057216,2088.7,2088.2,0.0011]
[1773466634604,1.057216,2088.5,2088.2,0.0011]
[1773466637235,2.25425011,2088.5,2088.2,0.0011]
[1773466637403,1.057216,2088.4,2088.2,0.0011]
[1773466638127,1.057216,2088.4,2088.0,0.0011]
[1773466639611,1.057216,2088.3,2088.0,0.0011]
[1773466641838,1.1570384,2088.5,2088.0,1.07277024]
[1773466642025,2.9410384,2088.8,2088.0,1.07277024]
[1773466642921,2.9410384,2088.8,2088.3,1.07167024]
[1773466643832,4.78629894,2089.3,2088.3,1.07167024]
[1773466643833,1.1570384,2089.0,2088.3,1.07167024]
[1773466644035,2.35378494,2089.0,2088.5,1.07167024]
[1773466644708,1.1570384,2088.9,2088.4,1.19708868]
[1773466646337,1.1570384,2088.9,2088.2,0.0011]
[1773466646546,1.1570384,2088.9,2088.4,1.07167024]
[1773466647141,2.35373443,2089.1,2088.4,1.07167024]
[1773466647344,2.35373128,2089.1,2088.4,1.07167024]
[1773466648640,1.1570384,2089.0,2088.5,2.2687016]
[1773466648947,1.1570384,2089.0,2088.3,1.07167024]
[1773466651233,1.19680214,2088.9,2088.3,2.26876744]
[1773466651412,2.35384054,2088.9,2088.3,2.26876744]
[1773466652554,4.78655725,2089.2,2088.3,2.26876744]
[1773466652555,1.1570384,2089.1,2088.4,1.07167024]
[1773466653048,1.1570384,2089.2,2088.4,1.07167024]
[1773466654611,2.35372312,2089.2,2088.6,1.07167024]
[1773466655234,0.001,2088.8,2088.6,1.07167024]
[1773466657411,0.001,2088.8,2088.7,1.19691674]
[1773466657722,0.001,2088.8,2088.7,2.26858698]
[1773466660421,1.19660781,2089.3,2088.8,1.07167024]
[1773466660610,2.35364621,2089.3,2088.8,1.07167024]
[1773466661325,2.35364621,2089.3,2088.8,2.26851634]
[1773466661525,2.35364621,2089.3,2088.9,1.07167024]
[1773466661741,1.1570384,2089.3,2088.9,1.07167024]
[1773466661919,2.35361716,2089.3,2088.9,1.07167024]
[1773466664445,1.1570384,2089.3,2088.9,2.2684679]
[1773466664644,1.1965754,2089.3,2088.9,1.07167024]
[1773466664850,1.1570384,2089.2,2088.9,1.07167024]
[1773466667147,1.1570384,2089.2,2088.9,2.2684292]
[1773466667523,0.001,2089.0,2088.9,1.07167024]
[1773466668031,1.12098505,2089.4,2089.1,1.18059158]
[1773466668534,1.12098505,2089.4,2088.9,2.37735289]
[1773466668744,1.12098505,2089.4,2088.8,1.18059158]
[1773466670152,1.12098505,2089.3,2088.8,2.37739542]
[1773466673360,1.13007469,2089.2,2088.8,2.37739542]
[1773466674449,1.13007469,2089.3,2088.9,1.13504856]
[1773466680457,1.13007469,2089.3,2088.9,2.33184626]
[1773466680770,2.32665216,2089.3,2088.9,1.13504856]
[1773466681128,2.32665216,2089.3,2088.9,2.33184714]
[1773466681529,2.32665216,2089.3,2089.0,0.0011]
[1773466681746,1.13007469,2089.3,2089.0,0.0011]
[1773466681947,0.001,2089.2,2089.0,0.0011]
[1773466685853,0.001,2089.2,2089.0,1.13614856]
[1773466697986,1.13107469,2089.2,2089.0,0.0011]
[1773466708682,0.001,2089.5,2089.1,1.12481237]
[1773466708856,1.15069792,2089.6,2089.1,1.12481237]
[1773466709361,1.15069792,2089.6,2089.1,1.17267987]
[1773466710463,1.15069792,2089.6,2089.2,2.32144265]
[1773466711054,1.15069792,2089.6,2089.2,2.32254265]
[1773466712486,1.15069792,2089.6,2089.2,0.0011]
[1773466712487,2.34710608,2089.6,2089.2,0.0011]
[1773466712780,1.15069792,2089.5,2089.0,0.0011]
[1773466715489,1.15069792,2089.3,2089.0,0.0011]
[1773466715957,1.15069792,2089.3,2088.8,0.0011]
[1773466717085,1.19663028,2089.2,2088.8,0.0011]
[1773466717290,1.15069792,2089.1,2088.8,0.0011]
[1773466717860,1.15069792,2089.1,2088.8,1.12591237]
[1773466719458,2.34739142,2089.1,2088.8,1.12591237]
[1773466722194,2.34739142,2089.1,2088.8,0.0011]
[1773466722382,1.15069792,2089.0,2088.8,0.0011]
[1773466733389,1.15069792,2089.0,2088.6,1.12481237]
[1773466734209,1.19680214,2088.9,2088.6,1.12481237]
[1773466734414,2.2573875,2088.9,2088.6,1.12481237]
[1773466735216,1.06058536,2088.9,2088.5,2.53070329]
[1773466735787,2.25737518,2089.0,2088.6,1.09906382]
[1773466736110,1.06058536,2089.1,2088.6,1.09906382]
[1773466736304,1.06058536,2089.1,2088.8,1.09906382]
[1773466736487,1.06058536,2089.1,2089.0,0.0011]
[1773466738330,2.25727292,2089.1,2089.0,0.0011]
[1773466744626,2.25721564,2089.2,2089.0,0.0011]
[1773466747026,3.02861178,2089.3,2089.0,1.10016382]
[1773466747427,1.19761178,2089.3,2089.0,1.10016382]
[1773466753436,1.06158536,2089.3,2089.0,1.10016382]
[1773466753823,0.001,2089.3,2089.0,1.10016382]
[1773466754015,0.001,2089.3,2089.1,1.09906382]
[1773466755740,1.19649901,2089.5,2089.1,1.09906382]
[1773466760352,2.25708437,2089.5,2089.1,1.09906382]
[1773466762010,0.001,2089.3,2089.1,1.09906382]
[1773466765350,1.838,2089.6,2089.2,1.13563507]
[1773466766429,1.838,2089.6,2089.4,1.13563507]
[1773466767041,2.30721136,2090.0,2089.4,1.13563507]
[1773466767539,1.11099955,2090.0,2089.4,1.13563507]
[1773466767739,2.3071718,2090.0,2089.4,1.13563507]
[1773466768839,1.11099955,2090.0,2089.5,1.13563507]
[1773466769665,2.30717357,2090.0,2089.5,1.13563507]
[1773466769854,1.11099955,2090.0,2089.5,1.13563507]
[1773466770154,4.1490961,2090.2,2089.5,1.13563507]
[1773466770857,4.1490961,2090.2,2089.7,1.13563507]
[1773466771242,1.842,2090.2,2089.7,1.13563507]
[1773466773223,1.842,2090.2,2089.7,2.33192861]
[1773466773447,1.842,2090.2,2089.8,1.13563507]
[1773466774363,4.14906241,2090.2,2089.8,1.13563507]
[1773466774529,0.001,2090.0,2089.8,1.13563507]
[1773466775054,1.11199955,2090.0,2089.4,1.13563507]
[1773466775233,1.11199955,2090.0,2089.4,2.33214926]
[1773466775439,1.11099955,2089.9,2089.5,1.13563507]
[1773466777232,2.30817275,2090.0,2089.5,1.13563507]
[1773466777460,1.11099955,2089.9,2089.5,2.33209235]
[1773466777661,1.11099955,2089.9,2089.6,1.13563507]
[1773466777961,0.001,2090.0,2089.6,1.13563507]
[1773466778158,1.11199955,2090.0,2089.6,1.18349111]
[1773466778365,0.001,2090.0,2089.6,1.18349111]
[1773466778730,1.842,2090.2,2089.6,0.79959794]
[1773466778942,1.842,2090.2,2089.7,1.13563507]
[1773466779863,1.11099955,2090.3,2089.9,1.13563507]
[1773466780159,2.30693229,2090.5,2090.0,1.13563507]
[1773466780663,1.11099955,2090.4,2090.0,1.13563507]
[1773466781238,1.11099955,2090.4,2089.9,1.13563507]
[1773466782059,2.30700012,2090.3,2089.9,1.13563507]
[1773466782439,1.11099955,2090.3,2089.9,2.33181756]
[1773466782642,1.11099955,2090.3,2089.9,1.13563507]
[1773466783263,1.11099955,2090.3,2090.0,1.13563507]
[1773466783768,2.3068857,2090.5,2090.0,1.13563507]
[1773466784073,2.3068857,2090.5,2090.0,1.19616641]
[1773466784246,2.3068857,2090.5,2090.1,1.13563507]
[1773466784442,1.11099955,2090.4,2090.1,1.13563507]
[1773466785455,2.30786689,2090.6,2090.1,1.13563507]
[1773466785764,1.11199955,2090.6,2090.1,1.13563507]
[1773466786070,1.11199955,2090.6,2090.3,1.13563507]
[1773466786266,2.30783013,2090.6,2090.3,1.13563507]
[1773466786481,0.001,2090.8,2090.6,1.13563507]
[1773466786968,0.001,2090.8,2090.5,0.7517419]
[1773466787144,0.001,2090.8,2090.5,1.86892941]
[1773466787472,0.001,2090.8,2090.6,1.11718751]
[1773466788754,1.19665123,2091.0,2090.6,1.11718751]
[1773466788950,0.001,2091.0,2090.6,1.11718751]
[1773466789172,2.28293494,2091.0,2090.6,1.11718751]
[1773466789974,0.001,2091.0,2090.6,1.11718751]
[1773466790275,1.19660425,2091.0,2090.6,1.11718751]
[1773466791575,1.07344083,2090.9,2090.0,2.22525276]
[1773466791755,1.07344083,2090.9,2090.0,1.02910835]
[1773466792570,1.07344083,2090.8,2090.0,1.02910835]
[1773466793072,1.07344083,2090.6,2090.1,1.07695295]
[1773466794778,1.07344083,2090.6,2090.1,1.02910835]
[1773466794978,1.19588615,2090.5,2090.1,1.02910835]
[1773466796477,2.26930345,2090.6,2090.2,1.07695066]
[1773466796889,1.19586262,2090.6,2090.2,1.07695066]
[1773466797558,1.07344083,2090.5,2090.0,1.19612779]
[1773466797758,1.07344083,2090.5,2090.1,1.02910835]
[1773466799268,1.07344083,2090.8,2090.4,0.0011]
[1773466799481,1.07344083,2090.7,2090.4,0.0011]
[1773466799781,4.78387123,2090.8,2090.4,1.03020835]
[1773466799782,2.27015538,2090.8,2090.4,1.03020835]
[1773466802293,1.07344083,2090.7,2090.4,1.03020835]
[1773466802589,1.07344083,2090.7,2090.1,0.0011]
[1773466802751,1.07264083,2090.6,2090.1,0.0011]
[1773466803087,1.07264083,2090.6,2090.1,0.0003]
[1773466804050,1.07344083,2090.4,2090.1,0.0003]
[1773466804895,1.07344083,2090.3,2089.5,1.03020835]
[1773466805192,1.07344083,2090.1,2089.5,1.03020835]
[1773466805360,1.07344083,2090.1,2089.5,0.0011]
[1773466806162,1.07344083,2089.9,2089.5,0.0011]
[1773466807497,1.07344083,2089.9,2089.5,1.03020835]
[1773466808299,1.19628672,2089.8,2089.5,1.03020835]
[1773466813502,1.19628672,2089.8,2089.7,0.0011]
[1773466818899,1.19628672,2089.8,2089.5,0.0011]
[1773466819200,2.26970202,2089.9,2089.5,1.03020835]
[1773466819675,2.26970202,2089.9,2089.5,1.07806668]
[1773466821474,1.19626119,2089.9,2089.5,1.07806668]
[1773466824485,2.27138417,2090.0,2089.6,1.07985544]
[1773466825800,2.27138417,2090.0,2089.7,1.08095544]
[1773466828411,4.78454928,2090.1,2089.7,1.08095544]
[1773466828618,5.85972749,2090.1,2089.7,1.08095544]
[1773466828905,1.07517821,2090.0,2089.7,0.0011]
[1773466830475,1.07517821,2089.8,2089.7,0.0011]
[1773466835118,2.27146493,2089.8,2089.7,0.0011]
[1773466837800,2.2713345,2090.1,2089.9,0.0011]
[1773466841591,1.03583942,2090.1,2089.9,0.0011]
[1773466841792,6.62843828,2090.2,2090.0,1.07985544]
[1773466842123,6.62843828,2090.2,2089.9,0.0011]
[1773466842324,1.19615629,2090.1,2089.9,0.0011]
[1773466842524,1.844,2090.2,2089.9,0.0011]
[1773466842710,1.844,2090.2,2090.0,0.00260843]
[1773466842894,3.04006518,2090.2,2090.0,0.00260843]
[1773466843403,3.04006518,2090.2,2089.9,0.0011]
[1773466843924,3.04006518,2090.2,2090.0,0.00258388]
[1773466848433,1.844,2090.2,2090.0,0.00258388]
[1773466852913,1.844,2090.2,2090.0,0.00368388]
[1773466853212,1.844,2090.2,2090.0,0.0011]
[1773466859735,3.04007023,2090.2,2089.7,0.0011]
[1773466860032,1.15875117,2090.1,2089.7,0.0011]
[1773466860751,3.04007023,2090.2,2089.7,0.0011]
[1773466860752,1.15875117,2089.9,2089.7,0.0011]
[1773466862911,1.19620987,2090.0,2089.7,0.0011]
[1773466864352,2.35496104,2090.0,2089.7,0.0011]
[1773466865636,5.76934804,2090.0,2089.9,0.0011]
[1773466866055,5.77034804,2090.0,2089.9,0.0011]
[1773466867946,1.15820117,2089.9,2089.7,0.0011]
[1773466869851,1.15820117,2089.9,2089.2,0.0011]
[1773466870346,2.3544698,2089.9,2089.2,0.0011]
[1773466874259,1.15820117,2089.9,2089.2,0.0011]
[1773466876237,1.19721159,2090.0,2089.2,0.0011]
[1773466876563,2.35541276,2090.0,2089.2,0.0011]
[1773466877851,2.35541276,2090.0,2089.5,0.0011]
[1773466878283,0.001,2089.8,2089.5,0.0011]
[1773466879862,1.15920117,2089.8,2089.5,0.0011]
[1773466882667,1.15920117,2089.8,2089.5,0.02907887]
[1773466883561,0.001,2089.8,2089.5,0.02907887]
[1773466885365,0.001,2090.0,2089.6,0.03271209]
[1773466888233,0.001,2090.0,2089.7,0.03727061]
[1773466888836,1.14538732,2090.2,2089.7,0.03727061]
[1773466888837,1.14538732,2090.2,2089.7,0.03875834]
[1773466890377,1.14538732,2090.2,2089.8,0.04023311]
[1773466890559,0.001,2090.2,2089.8,0.04023311]
[1773466894342,1.14538732,2090.2,2089.8,0.04023311]
[1773466897168,1.14538732,2090.2,2089.8,1.19627813]
[1773466897356,1.14538732,2090.2,2089.9,0.05001892]
[1773466897568,1.14538732,2090.2,2089.7,1.94869119]
[1773466897742,1.14538732,2090.2,2089.8,0.00137081]
[1773466898453,1.14538732,2090.2,2089.7,0.75375538]
[1773466898947,1.16939678,2090.1,2089.6,0.0013613]
[1773466900248,0.001,2090.2,2089.6,0.0013613]
[1773466900449,1.17108219,2090.2,2089.7,0.00270438]
[1773466902170,1.17108219,2090.2,2089.9,0.0011]
[1773466902474,0.001,2090.0,2089.9,0.00644225]
[1773466902643,0.001,2090.2,2090.0,0.00534225]
[1773466903173,1.17008219,2090.1,2089.9,0.0011]
[1773466904775,0.001,2090.2,2089.9,0.01030162]
[1773466907073,1.17539463,2090.2,2089.9,0.01030162]
[1773466907275,1.17539463,2090.2,2089.9,0.0011]
[1773466911455,1.17539463,2090.2,2089.9,0.04757046]
[1773466913351,1.17539463,2090.2,2089.5,0.0011]
[1773466913352,1.15626833,2090.1,2089.5,0.0011]
[1773466913678,1.18064286,2089.9,2089.3,0.0011]
[1773466914075,1.18064286,2089.9,2089.3,0.00225617]
[1773466914265,1.18064286,2089.7,2089.3,0.00225617]
[1773466914584,1.18064286,2089.7,2089.6,0.0011]
[1773466914980,1.18064286,2089.7,2089.2,0.0011]
[1773466915485,1.18009286,2089.5,2089.2,0.0011]
[1773466926298,1.17954286,2089.4,2088.7,0.14782629]
[1773466926506,1.17954286,2089.3,2088.6,0.01624114]
[1773466927211,1.85,2089.2,2088.6,0.01624114]
[1773466927398,1.17954286,2089.1,2088.6,1.21320965]
[1773466927574,1.17954286,2089.1,2088.6,1.19796741]
[1773466928073,1.17954286,2089.1,2088.5,0.0011]
[1773466928274,3.02954286,2089.1,2088.6,1.19696851]
[1773466928539,1.18866176,2089.0,2088.6,1.19696851]
[1773466928698,1.18866176,2089.0,2088.6,1.1979565]
[1773466931411,1.18866176,2089.0,2088.6,0.00098799]
[1773466932303,1.85,2089.1,2088.6,0.00098799]
[1773466933189,3.03866176,2089.1,2088.6,0.00098799]
[1773466938921,1.18866176,2089.0,2088.8,0.0011]
[1773466939084,1.18866176,2089.0,2088.5,0.0011]
[1773466939620,1.18866176,2089.0,2088.5,0.00624349]
[1773466945415,1.18866176,2089.0,2088.6,0.03200853]
[1773466947516,1.18715591,2089.2,2088.8,1.14391647]
[1773466950720,1.18715591,2089.2,2088.8,2.34074967]
[1773466954518,1.18715591,2089.2,2088.8,1.28381204]
[1773466956836,0.001,2089.3,2088.8,1.28381204]
[1773466957032,1.84,2089.6,2088.9,1.14391647]
[1773466958921,1.84,2089.6,2089.1,1.14391647]
[1773466959323,1.84,2089.6,2089.1,1.89599526]
[1773466959528,1.84,2089.6,2089.2,1.14391647]
[1773466960800,1.84,2089.6,2089.3,1.19657301]
[1773466961007,1.84,2089.6,2089.3,2.34048948]
[1773466962334,1.18715591,2089.9,2089.4,1.14391647]
[1773466963109,0.001,2090.0,2089.4,1.14391647]
[1773466963436,1.18815591,2090.0,2089.4,1.14391647]
[1773466964230,0.001,2089.5,2089.4,1.14391647]
[1773466964432,1.18815591,2090.0,2089.5,1.14391647]
[1773466964623,1.19717234,2090.0,2089.5,1.14391647]
[1773466964827,1.18715591,2089.9,2089.4,4.78591181]
[1773466965025,1.18715591,2089.9,2089.4,5.92982828]
[1773466965227,1.18715591,2089.9,2089.4,4.78591181]
[1773466965532,1.18715591,2089.9,2089.5,1.14391647]
[1773466966427,1.18715591,2089.9,2089.5,2.34032284]
[1773466968643,1.18715591,2089.9,2089.5,1.19640637]
[1773466973343,1.18715591,2089.9,2089.5,2.4013911]
[1773466973580,1.18715591,2089.9,2089.6,1.20498473]
[1773466974330,1.1474773,2090.1,2089.6,1.20498473]
[1773466976451,1.1474773,2090.1,2089.7,2.4024287]
[1773466976649,0.001,2089.7,2089.6,2.40138595]
[1773466976824,1.1474773,2090.1,2089.6,2.40138595]
[1773466978475,1.1474773,2090.1,2089.7,1.20498473]
[1773466979829,1.1474773,2090.1,2089.7,0.37449842]
[1773466979939,1.1474773,2090.1,2089.6,1.19640122]
[1773466980345,1.1474773,2090.1,2089.7,1.20498473]
[1773466980647,1.1474773,2090.1,2089.7,0.08884748]
[1773466980869,3.05850417,2090.0,2089.7,0.08884748]
[1773466982640,1.21950417,2089.9,2089.5,4.78679459]
[1773466982870,1.21950417,2089.9,2089.6,1.19640122]
[1773466986773,1.21950417,2089.9,2089.6,0.24814574]
[1773466988462,3.05850417,2090.0,2089.6,0.24814574]
[1773466988663,3.05950417,2090.1,2089.8,1.19628672]
[1773466988976,3.05950417,2090.1,2089.8,1.19738672]
[1773466989276,3.05950417,2090.1,2089.7,1.44797354]
[1773466994761,0.001,2090.2,2089.7,1.19630372]
[1773466994966,1.1484773,2090.2,2089.8,1.20498473]
[1773466997188,1.1484773,2090.2,2089.9,1.19622948]
[1773466997578,1.1484773,2090.2,2089.9,2.40121421]
[1773466998468,1.1484773,2090.2,2089.7,4.78520861]
[1773466998672,1.1484773,2090.2,2089.8,1.67069054]
[1773467001162,1.1484773,2090.2,2089.8,1.67179054]
[1773467001367,1.1484773,2090.2,2089.8,1.719642]
[1773467001662,0.001,2090.0,2089.8,1.719642]
[1773467001890,1.1484773,2090.2,2089.8,1.719642]
[1773467002067,1.1484773,2090.2,2089.9,0.54620606]
[1773467002265,0.001,2090.2,2089.9,0.54620606]
[1773467002486,0.001,2090.2,2090.0,1.19617224]
[1773467003482,0.001,2090.2,2089.9,1.74239299]
[1773467013603,0.001,2090.2,2090.0,0.0011]
[1773467016402,1.34928564,2090.3,2090.0,0.58290425]
[1773467018688,1.34928564,2090.3,2090.0,1.77902054]
[1773467026710,1.34928564,2090.3,2090.2,0.0011]
[1773467036909,1.34928564,2090.3,2089.9,1.19617723]
[1773467037108,1.34928564,2090.3,2089.8,4.7862233]
[1773467037416,1.34928564,2090.3,2089.9,1.19622948]
[1773467039026,1.34928564,2090.3,2090.1,0.0011]
[1773467041220,1.45949941,2090.5,2090.1,1.7918036]
[1773467041524,3.28449941,2090.5,2090.1,1.7918036]
[1773467041719,1.45949941,2090.5,2090.2,0.59458859]
[1773467041919,1.45949941,2090.6,2090.2,0.59458859]
[1773467043338,1.45949941,2090.6,2090.2,1.79060915]
[1773467043932,1.45949941,2090.6,2090.3,0.59748705]
[1773467046027,1.45949941,2090.6,2090.3,1.793443]
[1773467051107,1.83,2090.8,2090.4,1.44152266]
[1773467051439,3.28869941,2090.8,2090.4,1.44072266]
[1773467051809,1.45949941,2090.7,2090.4,1.44072266]
[1773467052040,3.28869941,2090.8,2090.4,2.19181928]
[1773467052251,3.28869941,2090.8,2090.4,1.44072266]
[1773467052700,3.28869941,2090.8,2090.4,2.63661876]
[1773467053830,0.0002,2090.8,2090.5,1.44152266]
[1773467054031,0.001,2091.0,2090.6,1.44152266]
[1773467054328,1.19660308,2091.0,2090.6,1.44152266]
[1773467054533,2.65610249,2091.0,2090.6,1.44152266]
[1773467058446,1.46049941,2091.0,2090.7,1.44152266]
[1773467061839,1.47030389,2090.9,2090.6,1.19581536]
[1773467062039,1.47030389,2090.9,2090.5,1.19584439]
[1773467062415,1.47030389,2090.9,2090.5,2.67626999]
[1773467063537,1.47030389,2090.9,2090.4,6.01366593]
[1773467063740,1.47030389,2090.9,2090.5,1.19584645]
[1773467064043,1.19660383,2091.0,2090.5,1.19584645]
[1773467064044,1.47130389,2090.8,2090.5,1.19584645]
[1773467064421,1.47130389,2090.8,2090.6,0.0011]
[1773467070841,1.47030389,2091.0,2090.6,0.0011]
[1773467071046,1.47030389,2091.0,2090.6,1.4815256]
[1773467073542,1.47030389,2090.9,2090.6,1.4815256]
[1773467077146,1.47030389,2090.9,2090.8,0.0011]
[1773467080865,1.47030389,2090.9,2090.1,1.4815256]
[1773467081150,1.19564567,2091.0,2090.1,1.4815256]
[1773467081151,1.47030389,2090.7,2090.1,1.4815256]
[1773467081355,1.829,2090.6,2090.2,1.4804256]
[1773467081552,1.47030389,2091.2,2090.3,1.4804256]
[1773467081730,1.47030389,2090.8,2090.2,1.4804256]
[1773467082251,1.47030389,2090.8,2090.2,1.35573154]
[1773467083054,1.47030389,2090.6,2090.2,1.35573154]
[1773467083456,1.47030389,2090.6,2090.1,1.39162469]
[1773467083756,1.47030389,2090.6,2090.1,2.58773419]
[1773467087260,1.67360931,2090.5,2090.1,2.58773419]
[1773467089032,1.67360931,2090.5,2090.1,1.1972095]
[1773467091551,1.67360931,2090.5,2090.3,0.0011]
[1773467098771,1.55875069,2090.6,2090.3,1.63102982]
[1773467099157,1.55875069,2090.6,2090.3,0.17371356]
[1773467099364,1.55875069,2090.6,2090.2,2.73717279]
[1773467100942,1.55875069,2090.4,2090.0,1.19726931]
[1773467101147,1.55875069,2090.4,2090.0,1.19616931]
[1773467101363,1.55875069,2090.4,2089.9,1.36502088]
[1773467101670,1.55875069,2090.4,2090.0,1.19616931]
[1773467102483,1.55875069,2090.3,2089.6,6.03304202]
[1773467102784,1.55875069,2090.3,2089.7,1.19740298]
[1773467102952,1.55875069,2090.3,2089.7,2.54047326]
[1773467103356,1.55875069,2090.2,2089.7,2.54047326]
[1773467104283,1.55875069,2090.2,2090.1,0.0011]
[1773467104854,1.55875069,2090.2,2089.7,1.19740298]
[1773467105172,1.55875069,2090.2,2089.9,0.0011]
[1773467113791,1.55875069,2090.2,2089.9,1.19732948]
[1773467114093,1.55875069,2090.2,2089.9,1.19622948]
[1773467115490,1.55875069,2090.2,2089.8,0.06946673]
[1773467115992,1.55875069,2090.2,2089.8,1.26571046]
[1773467117375,1.55875069,2090.2,2090.0,0.0011]
[1773467117575,1.55875069,2090.2,2089.7,0.18866276]
[1773467117763,1.55875069,2090.2,2089.5,0.0011]
[1773467117764,1.84915384,2090.0,2089.8,0.0011]
[1773467117968,1.84915384,2090.0,2089.5,0.0011]
[1773467117969,1.84860384,2089.9,2089.5,0.0011]
[1773467120684,1.84860384,2089.8,2089.5,0.0011]
[1773467121674,1.84860384,2089.8,2089.3,4.78719813]
[1773467122277,1.84860384,2089.8,2089.3,5.02207265]
[1773467122794,1.84860384,2089.8,2089.4,1.1964702]
[1773467122970,1.84860384,2089.8,2089.4,0.27112821]
[1773467123375,1.84860384,2089.8,2089.4,0.31898883]
[1773467123993,1.84860384,2089.8,2089.4,0.27112821]
[1773467124694,1.83,2089.9,2089.4,0.27112821]
[1773467124695,1.93424891,2089.7,2089.4,0.27112821]
[1773467126894,1.93424891,2089.7,2089.5,1.19645848]
[1773467127092,1.93424891,2089.7,2089.4,0.27112821]
[1773467127393,1.93424891,2089.7,2089.5,1.19645848]
[1773467127564,1.93424891,2089.7,2089.4,0.27112821]
[1773467127766,1.93424891,2089.7,2089.5,1.19645848]
[1773467128078,1.93524891,2090.3,2089.6,0.32308051]
[1773467129377,1.93524891,2090.3,2089.8,0.34626385]
[1773467132773,1.93424891,2090.5,2089.8,1.8038019]
[1773467134195,3.13014236,2090.5,2089.8,1.8038019]
[1773467134892,3.13014236,2090.5,2089.9,1.19622948]
[1773467135091,3.13014236,2090.5,2090.0,1.8038019]
[1773467138087,1.93424891,2090.5,2090.1,1.8038019]
[1773467139516,4.78412277,2090.7,2090.1,1.8038019]
[1773467139517,0.001,2090.7,2090.1,1.8038019]
[1773467139694,1.93524891,2090.7,2090.1,1.8038019]
[1773467139890,1.93524891,2090.7,2090.0,1.19613836]
[1773467140215,1.93424891,2090.5,2090.2,1.8038019]
[1773467140785,1.93424891,2090.5,2090.1,2.99988324]
[1773467143317,1.93424891,2090.5,2090.2,0.0011]
[1773467143703,0.001,2090.3,2090.2,0.0011]
[1773467143905,1.93424891,2090.5,2090.2,0.0011]
[1773467157708,1.93424891,2090.5,2090.4,0.0011]
[1773467158216,1.93424891,2090.5,2090.2,0.0011]
[1773467160732,1.98972311,2090.4,2090.2,0.0011]
[1773467163535,1.98972311,2090.3,2090.2,0.0011]
[1773467163743,3.18563624,2090.5,2090.2,0.0011]
[1773467164123,1.98972311,2090.5,2090.2,0.0011]
[1773467170452,1.98972311,2090.5,2090.4,0.0011]
[1773467175149,0.001,2090.7,2090.4,0.0011]
[1773467175362,0.001,2090.7,2090.4,2.12010207]
[1773467176539,1.98972311,2091.1,2090.6,2.11900207]
[1773467178337,3.18526727,2091.1,2090.6,2.11900207]
[1773467178537,1.98972311,2091.1,2090.7,3.31477382]
[1773467179051,1.98972311,2091.1,2090.8,2.11900207]
[1773467179263,3.81172311,2091.3,2090.8,2.11900207]
[1773467180649,3.81172311,2091.3,2090.9,3.31465944]
[1773467182641,1.822,2091.3,2090.9,3.31465944]
[1773467182964,2.1574804,2091.2,2090.9,3.31575944]
[1773467183153,0.001,2091.1,2090.9,3.31575944]
[1773467186658,4.78115884,2091.6,2091.0,2.09114103]
[1773467186961,2.1574804,2091.4,2091.0,2.09114103]
[1773467189356,3.35285243,2091.4,2091.0,2.09114103]
[1773467191573,3.35285243,2091.4,2090.6,4.78440778]
[1773467191574,2.20530683,2091.3,2090.6,0.0011]
[1773467191742,2.1574804,2091.1,2090.4,1.84683504]
[1773467191940,2.1574804,2090.9,2090.4,1.84683504]
[1773467193167,2.1574804,2090.9,2090.3,3.28708439]
[1773467194363,2.1574804,2090.8,2090.3,3.28708439]
[1773467195471,2.1574804,2090.8,2090.2,0.0011]
[1773467195664,2.1574804,2090.8,2090.2,3.2882625]
[1773467195864,2.1574804,2090.8,2090.2,1.19712147]
[1773467196065,2.1574804,2090.8,2090.2,0.0011]
[1773467196373,2.1574804,2090.8,2090.4,0.0011]
[1773467197173,1.19577175,2090.7,2090.4,0.0011]